[Event "18th Izmir Open 2019"]
[Site "Izmir"]
[Date "2019.09.05"]
[Round "6.6"]
[White "Yilmaz, Turhan"]
[Black "Ozbek, Busra"]
[Result "1/2-1/2"]
[ECO "B06"]
[WhiteElo "2180"]
[BlackElo "1928"]
[Annotator "ChessBase"]
[PlyCount "162"]
[EventDate "2019.09.02"]
[EventType "swiss"]
[EventCountry "TUR"]
[SourceTitle "playchess.com"]
[Source "ChessBase"]
[SourceQuality "1"]
[TimeControl "5400+30"]

1. e4 {[%emt 0:12:30]} g6 {[%emt 0:00:30]} 2. d4 {[%emt 0:01:30]} Bg7 {[%emt 0:00:00]} 3. Nc3 {[%emt 0:00:30]} d6 {[%emt 0:00:00]} 4. Be3 {[%emt 0:00:00]} c6 {[%emt 0:00:30]} 5. Qd2 {[%emt 0:00:00]} b5 {[%emt 0:00:30]} 6. f3 {[%emt 0:00:30]} Nd7 {[%emt 0:06:30]} 7. g4 {[%emt 0:00:30]} Qc7 {[%emt 0:02:30]} 8. Nce2 {[%emt 0:04:30]} Nb6 {[%emt 0:19:30]} 9. b3 {[%emt 0:05:30]} h5 {[%emt 0:09:30]} 10. g5 {[%emt 0:00:30]} Bb7 {[%emt 0:14:30]} 11. Nh3 {[%emt 0:02:30]} e5 {[%emt 0:00:30]} 12. f4 {[%emt 0:01:30]} Ne7 {[%emt 0:10:30]} 13. Bg2 {[%emt 0:06:30]} Rd8 {[%emt 0:02:30]} 14. Qa5 {[%emt 0:10:30]} Nbd5 {[%emt 0:09:30]} 15. Qxc7 {[%emt 0:00:30]} Nxc7 {[%emt 0:00:30]} 16. a4 {[%emt 0:01:30]} a6 {[%emt 0:01:24]} 17. c4 {[%emt 0:05:30]} exf4 {[%emt 0:05:49]} 18. Nhxf4 {[%emt 0:02:30]} bxc4 {[%emt 0:00:08]} 19. bxc4 {[%emt 0:00:00]} c5 {[%emt 0:01:20]} 20. Rb1 {[%emt 0:01:00]} Bc6 {[%emt 0:01:28]} 21. d5 {[%emt 0:00:30]} Bxa4 {[%emt 0:00:24]} 22. Rb7 {[%emt 0:00:00]} Rc8 {[%emt 0:00:39]} 23. O-O {[%emt 0:01:00]} Bd7 {[%emt 0:01:53]} 24. Rfb1 {[%emt 0:01:30]} a5 {[%emt 0:02:08]} 25. Ra7 {[%emt 0:01:30]} a4 {[%emt 0:02:35]} 26. Rbb7 {[%emt 0:03:30]} Be5 {[%emt 0:02:18]} 27. Rxc7 {[%emt 0:01:30]} Rxc7 {[%emt 0:00:01]} 28. Rxc7 {[%emt 0:00:00]} Nc8 {[%emt 0:00:02]} 29. Nd3 {[%emt 0:01:00]} a3 {[%emt 0:01:10]} 30. Nec1 {[%emt 0:00:30]} Bc3 {[%emt 0:00:48]} 31. Rb7 {[%emt 0:00:30]} Ba4 {[%emt 0:01:05]} 32. e5 {[%emt 0:03:30]} Bc2 {[%emt 0:01:06]} 33. Na2 {[%emt 0:00:30]} Ba1 {[%emt 0:03:17]} 34. exd6 {[%emt 0:01:30]} Nxd6 {[%emt 0:00:43]} 35. Rb8+ {[%emt 0:00:30]} Ke7 {[%emt 0:00:02]} 36. Rxh8 {[%emt 0:01:30]} Bxh8 {[%emt 0:00:03]} 37. Ndc1 {[%emt 0:00:30]} Nxc4 {[%emt 0:01:09]} 38. Bxc5+ {[%emt 0:00:00]} Kd7 {[%emt 0:00:04]} 39. Bf1 {[%emt 0:01:00]} Nd2 {[%emt 0:00:26]} 40. Bb5+ {[%emt 0:00:00]} Kd8 {[%emt 0:00:44]} 41. d6 {[%emt 0:01:00]} Bd4+ {[%emt 0:01:02]} 42. Bxd4 {[%emt 0:00:30]} Nf3+ {[%emt 0:00:02]} 43. Kf2 {[%emt 0:00:30]} Nxd4 {[%emt 0:00:02]} 44. Bc4 {[%emt 0:00:30]} Ne6 {[%emt 0:01:21]} 45. Nb4 {[%emt 0:01:30]} Bf5 {[%emt 0:00:36]} 46. Bb5 {[%emt 0:00:30]} Nxg5 {[%emt 0:00:23]} 47. Ke3 {[%emt 0:00:30]} Ne4 {[%emt 0:00:24]} 48. Nc6+ {[%emt 0:02:30]} Kd7 {[%emt 0:00:19]} 49. Nd4+ {[%emt 0:01:30]} Kxd6 {[%emt 0:00:10]} 50. Nxf5+ {[%emt 0:00:00]} gxf5 {[%emt 0:00:02]} 51. Kd4 {[%emt 0:00:00]} Nd2 {[%emt 0:00:43]} 52. Be2 {[%emt 0:00:30]} h4 {[%emt 0:00:38]} 53. Kc3 {[%emt 0:01:30]} Ne4+ {[%emt 0:00:21]} 54. Kd4 {[%emt 0:01:30]} Nd2 {[%emt 0:00:35]} 55. Ke3 {[%emt 0:00:30]} Ne4 {[%emt 0:00:27]} 56. Kf4 {[%emt 0:00:30]} Ke6 {[%emt 0:00:45]} 57. Bd3 {[%emt 0:00:30]} Nc3 {[%emt 0:00:20]} 58. Bc4+ {[%emt 0:00:30]} Kf6 {[%emt 0:00:10]} 59. Ke3 {[%emt 0:00:30]} Kg6 {[%emt 0:01:44]} 60. Kd4 {[%emt 0:00:30]} Ne4 {[%emt 0:00:13]} 61. Nd3 {[%emt 0:01:30]} f6 {[%emt 0:00:48]} 62. Ke3 {[%emt 0:01:30]} Kg5 {[%emt 0:00:34]} 63. h3 {[%emt 0:03:30]} Nc3 {[%emt 0:00:15]} 64. Nb4 {[%emt 0:00:30]} f4+ {[%emt 0:00:50]} 65. Kf3 {[%emt 0:01:30]} Kf5 {[%emt 0:00:38]} 66. Nc2 {[%emt 0:01:45]} a2 {[%emt 0:00:30]} 67. Bb3 {[%emt 0:00:15]} Kg5 {[%emt 0:00:20]} 68. Be6 {[%emt 0:00:23]} Kg6 {[%emt 0:00:00]} 69. Kxf4 {[%emt 0:06:31]} Ne2+ {[%emt 0:00:00]} 70. Ke3 {[%emt 0:00:30]} Nc3 {[%emt 0:00:00]} 71. Kd3 {[%emt 0:00:30]} Nd1 {[%emt 0:00:00]} 72. Kd2 {[%emt 0:00:30]} Nf2 {[%emt 0:00:03]} 73. Ke2 {[%emt 0:00:30]} Ne4 {[%emt 0:00:30]} 74. Ke3 {[%emt 0:00:30]} Ng5 {[%emt 0:00:30]} 75. Bd7 {[%emt 0:00:30]} f5 {[%emt 0:00:30]} 76. Kf4 {[%emt 0:00:30]} Nxh3+ {[%emt 0:00:30]} 77. Ke5 {[%emt 0:00:30]} Kg5 {[%emt 0:00:30]} 78. Bxf5 {[%emt 0:00:30]} Nf2 {[%emt 0:00:30]} 79. Be6 {[%emt 0:00:30]} h3 {[%emt 0:00:30]} 80. Bxa2 {[%emt 0:00:07]} h2 {[%emt 0:00:06]} 81. Bd5 {[%emt 0:00:04]} h1=Q {[%emt 0:00:22]} 1/2-1/2

[Event "18th Izmir Open 2019"]
[Site "Izmir"]
[Date "2019.09.05"]
[Round "6.7"]
[White "Celiker, Yakup"]
[Black "Demirbag, Alihan"]
[Result "0-1"]
[ECO "A65"]
[WhiteElo "1940"]
[BlackElo "2121"]
[Annotator "NA"]
[PlyCount "78"]
[EventDate "2019.09.02"]
[EventType "swiss"]
[EventCountry "TUR"]
[SourceTitle "playchess.com"]
[Source "ChessBase"]
[SourceQuality "1"]
[TimeControl "5400+30"]

1. d4 {[%emt 0:00:30]} Nf6 {[%emt 0:20:30]} 2. c4 {[%emt 0:00:00]} c5 {[%emt 0:04:30]} 3. d5 {[%emt 0:01:00]} e6 {[%emt 0:00:00]} 4. Nc3 {[%emt 0:00:30]} exd5 {[%emt 0:00:00]} 5. cxd5 {[%emt 0:00:30]} d6 {[%emt 0:00:30] Decoy} 6. e4 $14 {[%emt 0:00:30]} g6 {[%emt 0:00:00]} 7. f3 {[%emt 0:01:30]} Bg7 {[%emt 0:00:00]} 8. Nge2 {[%emt 0:00:30]} O-O {[%emt 0:06:30]} 9. Ng3 {[%emt 0:00:30]} a6 {[%emt 0:00:30]} 10. a4 {[%emt 0:00:30]} Nbd7 {[%emt 0:02:30]} 11. Be2 {[%emt 0:03:30]} Rb8 {[%emt 0:05:30]} 12. O-O {[%emt 0:04:30]} Ne8 {[%emt 0:03:30]} 13. Be3 {[%emt 0:04:30]} Nc7 {[%emt 0:00:30]} 14. Qd2 {[%emt 0:01:30]} b5 {[%emt 0:01:30]} 15. axb5 {[%emt 0:00:30]} axb5 {[%emt 0:00:30]} 16. Bg5 {[%emt 0:02:30]} f6 {[%emt 0:03:30]} 17. Bh6 {[%emt 0:00:30]} c4 {[%emt 0:09:30]} 18. Bxg7 {[%emt 0:08:30]} Kxg7 {[%emt 0:00:30]} 19. Ra7 {[%emt 0:02:30]} Ba6 {[%emt 0:05:30]} 20. Ra1 {[%emt 0:06:30]} Rb6 {[%emt 0:00:30]} 21. Na2 {[%emt 0:07:30]} Qb8 {[%emt 0:00:30]} 22. Rxc7 {[%emt 0:00:30]} Qxc7 {[%emt 0:00:30]} 23. Nb4 {[%emt 0:00:00]} Bb7 {[%emt 0:01:30]} 24. f4 {[%emt 0:01:00]} Nc5 {[%emt 0:05:30]} 25. Rf1 {[%emt 0:03:30]} Nb3 {[%emt 0:04:30]} 26. Qe1 {[%emt 0:02:30]} Ra8 {[%emt 0:01:30]} 27. e5 {[%emt 0:05:30]} dxe5 {[%emt 0:02:30]} 28. Ne4 {[%emt 0:01:30]} Rd8 {[%emt 0:02:39]} 29. Bf3 {[%emt 0:05:30]} Nd4 {[%emt 0:01:43]} 30. d6 {[%emt 0:04:30]} Rbxd6 {[%emt 0:00:52]} 31. fxe5 {[%emt 0:01:30]} Nxf3+ {[%emt 0:01:17]} 32. gxf3 {[%emt 0:00:00]} fxe5 {[%emt 0:00:14]} 33. Ng5 {[%emt 0:06:00]} Qc5+ {[%emt 0:01:36]} 34. Kg2 {[%emt 0:01:30]} h6 {[%emt 0:00:33]} 35. Nh3 {[%emt 0:00:30]} Rd2+ {[%emt 0:00:31]} 36. Rf2 {[%emt 0:00:30]} Qxb4 {[%emt 0:00:34]} 37. Qxe5+ {[%emt 0:00:30]} Kh7 {[%emt 0:00:10]} 38. Rxd2 {[%emt 0:01:30]} Qxd2+ {[%emt 0:00:20]} 39. Nf2 {[%emt 0:00:00]} Qg5+ {[%emt 0:00:10]} 0-1

[Event "18th Izmir Open 2019"]
[Site "Izmir"]
[Date "2019.09.05"]
[Round "6.8"]
[White "Okus, Melih"]
[Black "Unat, Can Haktan"]
[Result "0-1"]
[ECO "A23"]
[WhiteElo "1935"]
[BlackElo "2100"]
[Annotator "NA"]
[PlyCount "106"]
[EventDate "2019.09.02"]
[EventType "swiss"]
[EventCountry "TUR"]
[SourceTitle "playchess.com"]
[Source "ChessBase"]
[SourceQuality "1"]
[TimeControl "5400+30"]

1. c4 {[%emt 0:01:30]} e5 {[%emt 0:00:30]} 2. Nc3 {[%emt 0:00:00]} Nf6 {[%emt 0:00:00]} 3. g3 {[%emt 0:01:00]} c6 {[%emt 0:00:00]} 4. d4 {[%emt 0:02:30]} e4 {[%emt 0:00:00]} 5. Bg2 {[%emt 0:02:30]} d5 {[%emt 0:00:00]} 6. f3 {[%emt 0:06:30]} Bb4 {[%emt 0:02:30]} ({Of course not} 6... dxc4 7. fxe4 Bb4 8. e5 $16) 7. a3 {[%emt 0:05:30]} Bxc3+ {[%emt 0:00:30]} 8. bxc3 {[%emt 0:00:00]} O-O {[%emt 0:00:30]} 9. Bg5 {[%emt 0:03:00]} Bf5 $15 {[%emt 0:04:30]} ({Reject} 9... dxc4 $6 10. fxe4 h6 11. Bxf6 $14) 10. fxe4 {[%emt 0:07:30]} Bxe4 {[%emt 0:00:30]} 11. Nf3 {[%emt 0:02:30]} Nbd7 {[%emt 0:03:30]} 12. O-O {[%emt 0:04:30]} h6 {[%emt 0:00:30]} 13. Bxf6 {[%emt 0:00:30]} Nxf6 {[%emt 0:00:30]} 14. Qb3 {[%emt 0:02:30]} b6 {[%emt 0:01:30]} 15. Ne5 {[%emt 0:00:30]} Rc8 {[%emt 0:02:30]} 16. a4 {[%emt 0:02:30]} c5 {[%emt 0:14:30]} 17. cxd5 {[%emt 0:03:30]} Bxg2 {[%emt 0:00:30]} 18. Kxg2 {[%emt 0:00:30]} Qxd5+ {[%emt 0:00:00]} 19. Qxd5 {[%emt 0:00:30]} Nxd5 {[%emt 0:00:00]} 20. Rf3 {[%emt 0:00:30]} cxd4 {[%emt 0:00:30]} 21. cxd4 {[%emt 0:00:30]} Rc2 {[%emt 0:00:30]} 22. Kf1 {[%emt 0:00:30]} f6 {[%emt 0:00:30]} 23. Ng4 {[%emt 0:00:30]} Re8 {[%emt 0:00:30]} 24. Rf5 {[%emt 0:00:30]} Nc3 {[%emt 0:00:30]} 25. e3 {[%emt 0:17:30]} Re4 {[%emt 0:06:30]} 26. h3 {[%emt 0:02:30]} Re7 {[%emt 0:00:30]} 27. Rf2 {[%emt 0:02:30]} Rxf2+ {[%emt 0:00:30]} 28. Kxf2 {[%emt 0:00:00]} h5 {[%emt 0:00:30]} 29. Nh2 {[%emt 0:00:00]} Ne4+ {[%emt 0:00:30]} 30. Kg2 {[%emt 0:01:30]} Rc7 {[%emt 0:00:30]} 31. Ra2 {[%emt 0:02:30]} Rc3 {[%emt 0:00:30]} 32. Nf1 {[%emt 0:02:30]} Kf7 {[%emt 0:00:30]} 33. Kf3 {[%emt 0:01:30]} Ng5+ {[%emt 0:00:30]} 34. Ke2 {[%emt 0:00:30]} Ke6 {[%emt 0:00:00]} 35. a5 {[%emt 0:02:30]} b5 {[%emt 0:01:00]} 36. a6 {[%emt 0:03:30]} Ne4 {[%emt 0:01:30]} 37. g4 {[%emt 0:01:58]} hxg4 {[%emt 0:01:30]} 38. hxg4 {[%emt 0:00:02]} g6 {[%emt 0:11:30]} 39. Nd2 {[%emt 0:02:51]} Nd6 {[%emt 0:00:00]} 40. Rb2 {[%emt 0:00:45]} Kd5 {[%emt 0:01:00]} 41. Nb1 {[%emt 0:03:28]} Rxe3+ {[%emt 0:00:30]} 42. Kxe3 {[%emt 0:01:14]} Nc4+ {[%emt 0:00:30]} 43. Kd3 {[%emt 0:00:22]} Nxb2+ {[%emt 0:00:30]} 44. Kc3 {[%emt 0:00:01]} Nc4 {[%emt 0:01:30]} 45. Kb4 {[%emt 0:00:07]} Nd6 {[%emt 0:00:00]} 46. Nd2 {[%emt 0:03:07]} Kxd4 {[%emt 0:02:00]} 47. Nb3+ {[%emt 0:00:01]} Kd5 {[%emt 0:00:30]} 48. Nc5 {[%emt 0:00:01]} f5 {[%emt 0:00:30]} 49. gxf5 {[%emt 0:00:01]} gxf5 {[%emt 0:00:00]} 50. Nd7 {[%emt 0:00:10]} f4 {[%emt 0:00:00]} 51. Nf6+ {[%emt 0:00:02]} Kd4 {[%emt 0:00:30]} 52. Ng4 {[%emt 0:00:05]} f3 {[%emt 0:00:00]} 53. Nf2 {[%emt 0:00:11]} Ne4 {[%emt 0:00:00]} 0-1

[Event "18th Izmir Open 2019"]
[Site "Izmir"]
[Date "2019.09.05"]
[Round "6.9"]
[White "Mohannad, Farhan"]
[Black "Aydinalp, Suhel"]
[Result "1-0"]
[ECO "E92"]
[WhiteElo "2094"]
[BlackElo "1709"]
[Annotator "NA"]
[PlyCount "121"]
[EventDate "2019.09.02"]
[EventType "swiss"]
[EventCountry "TUR"]
[SourceTitle "playchess.com"]
[Source "ChessBase"]
[SourceQuality "1"]
[TimeControl "5400+30"]

1. d4 {[%emt 0:00:30]} Nf6 {[%emt 0:00:30]} 2. c4 {[%emt 0:00:00]} g6 {[%emt 0:00:30]} 3. Nc3 {[%emt 0:00:00]} Bg7 {[%emt 0:00:30]} 4. e4 {[%emt 0:00:00]} d6 {[%emt 0:00:00]} 5. Nf3 {[%emt 0:00:00]} O-O {[%emt 0:00:00]} 6. Be2 {[%emt 0:00:00]} e5 {[%emt 0:00:00]} 7. d5 {[%emt 0:00:00]} a5 {[%emt 0:05:00]} 8. O-O {[%emt 0:00:30]} b6 {[%emt 0:05:30]} 9. Bg5 {[%emt 0:00:00]} h6 {[%emt 0:01:30]} 10. Bh4 {[%emt 0:00:00]} g5 {[%emt 0:04:30]} 11. Bg3 {[%emt 0:00:30]} Nh5 $14 {[%emt 0:00:30]} 12. Nd2 {[%emt 0:00:00]} Nf4 {[%emt 0:01:30]} 13. Bg4 {[%emt 0:00:00]} Nd7 {[%emt 0:03:30]} 14. a3 {[%emt 0:06:30]} Nc5 {[%emt 0:13:30]} 15. Bxc8 {[%emt 0:00:00]} Qxc8 {[%emt 0:01:30]} 16. b4 {[%emt 0:00:00]} Ncd3 {[%emt 0:10:30]} 17. Qb3 {[%emt 0:00:30]} h5 {[%emt 0:01:30]} 18. f3 {[%emt 0:04:30]} h4 {[%emt 0:00:30]} 19. Bf2 {[%emt 0:00:00]} Nxf2 {[%emt 0:09:30]} 20. Rxf2 {[%emt 0:00:00]} g4 {[%emt 0:00:30]} 21. Rff1 {[%emt 0:28:30]} g3 {[%emt 0:01:30]} 22. Rfd1 {[%emt 0:13:30]} axb4 {[%emt 0:01:30]} 23. axb4 {[%emt 0:00:30]} Rxa1 {[%emt 0:00:30]} 24. Rxa1 {[%emt 0:00:30]} gxh2+ {[%emt 0:02:30]} 25. Kxh2 {[%emt 0:00:30]} Qd8 {[%emt 0:00:30]} 26. Nf1 {[%emt 0:01:30]} Qg5 {[%emt 0:02:30]} 27. Qc2 {[%emt 0:00:30]} Bh6 {[%emt 0:00:30]} 28. Nd1 {[%emt 0:01:30]} Nh5 {[%emt 0:00:30]} 29. Nde3 {[%emt 0:06:30]} Kh8 {[%emt 0:09:30]} 30. Ng4 {[%emt 0:02:30]} Rg8 {[%emt 0:01:30]} 31. Nfe3 {[%emt 0:07:30]} Qf4+ {[%emt 0:01:30]} 32. Kg1 {[%emt 0:00:00]} h3 {[%emt 0:07:32]} 33. Nf5 {[%emt 0:01:00]} Bg5 {[%emt 0:04:25]} 34. Qf2 {[%emt 0:02:30]} Ng7 {[%emt 0:05:03]} 35. g3 {[%emt 0:04:30]} Qd2 {[%emt 0:00:47]} 36. Qxd2 {[%emt 0:00:00]} Bxd2 {[%emt 0:00:02]} 37. Nxg7 {[%emt 0:03:00]} Kxg7 {[%emt 0:00:01]} 38. b5 {[%emt 0:00:30]} Ba5 {[%emt 0:00:12]} 39. Kh2 {[%emt 0:00:30]} Kg6 {[%emt 0:02:25]} 40. Ne3 {[%emt 0:01:54]} Rh8 {[%emt 0:00:06]} 41. Nf5 {[%emt 0:00:08]} Kg5 {[%emt 0:00:15]} 42. Nh4 {[%emt 0:00:48]} Rxh4 {[%emt 0:04:04]} 43. gxh4+ {[%emt 0:00:10]} Kxh4 {[%emt 0:00:03]} 44. Rg1 {[%emt 0:00:30]} Bd2 {[%emt 0:00:17]} 45. Rg4+ {[%emt 0:00:30]} Kh5 {[%emt 0:00:11]} 46. Kxh3 {[%emt 0:00:30]} Bg5 {[%emt 0:00:17]} 47. Rg2 {[%emt 0:00:00]} f6 {[%emt 0:00:17]} 48. Ra2 {[%emt 0:00:00]} Kg6 {[%emt 0:01:23]} 49. Kg4 {[%emt 0:00:30]} Be3 {[%emt 0:00:06]} 50. Ra7 {[%emt 0:00:30]} Bd2 {[%emt 0:00:32]} 51. Rxc7 {[%emt 0:00:00]} Be3 {[%emt 0:00:02]} 52. Rd7 {[%emt 0:01:00]} Bc5 {[%emt 0:00:07]} 53. Rd8 {[%emt 0:00:30]} Bb4 {[%emt 0:00:06]} 54. Rg8+ {[%emt 0:01:30]} Kf7 {[%emt 0:00:04]} 55. Rb8 {[%emt 0:00:00]} Bc5 {[%emt 0:00:07]} 56. Kf5 {[%emt 0:00:00]} Be3 {[%emt 0:00:34]} 57. Rb7+ {[%emt 0:00:00]} Kg8 {[%emt 0:00:02]} 58. Kxf6 {[%emt 0:00:00]} Bc5 {[%emt 0:00:07]} 59. Rd7 {[%emt 0:00:30]} Bb4 {[%emt 0:00:06]} 60. Rg7+ {[%emt 0:00:30]} Kf8 {[%emt 0:00:08]} 61. Rb7 {[%emt 0:00:30]} 1-0

[Event "18th Izmir Open 2019"]
[Site "Izmir"]
[Date "2019.09.06"]
[Round "7.1"]
[White "Kamer, Kayra"]
[Black "Guseynov, Alihan"]
[Result "1-0"]
[ECO "B32"]
[WhiteElo "2304"]
[BlackElo "2326"]
[Annotator "NA"]
[PlyCount "167"]
[EventDate "2019.09.02"]
[EventType "swiss"]
[EventCountry "TUR"]
[SourceTitle "playchess.com"]
[Source "ChessBase"]
[SourceQuality "1"]
[TimeControl "5400+30"]

1. e4 {[%emt 0:00:30]} c5 {[%emt 0:02:30]} 2. Nf3 {[%emt 0:00:00]} Nc6 {[%emt 0:00:30]} 3. d4 {[%emt 0:00:00]} cxd4 {[%emt 0:00:30]} 4. Nxd4 {[%emt 0:00:30]} e5 {[%emt 0:01:30]} 5. Nb5 {[%emt 0:00:30]} d6 {[%emt 0:01:30]} 6. N1c3 {[%emt 0:04:30]} a6 {[%emt 0:00:00]} 7. Na3 {[%emt 0:00:30]} Be7 {[%emt 0:00:00]} 8. Be3 {[%emt 0:02:30] B32: Sicilian: Löwenthal and Kalashnikov Variations} (8. Nc4 b5 9. Ne3 Nf6 10. g3 O-O 11. Bg2 b4 12. Ncd5 Nxd5 13. Nxd5 Bg5 14. Bxg5 Qxg5 15. a3 bxa3 16. Rxa3 {½-½ (42) Robson,R (2667)-Moranda,W (2595) chess.com INT 2019}) 8... Nf6 {[%emt 0:03:30]} 9. Nc4 {[%emt 0:01:30]} b5 {[%emt 0:03:30]} 10. Nb6 {[%emt 0:01:30]} Rb8 {[%emt 0:00:30]} 11. Nxc8 {[%emt 0:00:30]} Qxc8 {[%emt 0:03:30]} 12. a4 {[%emt 0:05:30]} O-O {[%emt 0:10:30]} 13. axb5 {[%emt 0:04:30]} axb5 {[%emt 0:00:30]} 14. f3 $146 {[%emt 0:06:30]} ({Predecessor:} 14. Be2 Nb4 15. O-O d5 16. Nxd5 Nfxd5 17. exd5 {1-0 (36) Hacker,J (2357)-Gohil,H (2290) Germany 2016}) 14... b4 {[%emt 0:12:30]} 15. Nd5 {[%emt 0:02:30]} Nxd5 {[%emt 0:01:30]} 16. Qxd5 {[%emt 0:00:30]} Ra8 {[%emt 0:04:30]} 17. Rxa8 {[%emt 0:04:30]} Qxa8 {[%emt 0:00:00]} 18. Kf2 {[%emt 0:00:30]} Nd4 {[%emt 0:07:00]} 19. Qxa8 {[%emt 0:00:30]} Rxa8 {[%emt 0:00:30]} 20. Bd3 {[%emt 0:05:30]} Bd8 {[%emt 0:07:30]} 21. Rb1 {[%emt 0:03:30]} Kf8 {[%emt 0:04:30]} 22. Ke1 {[%emt 0:08:30]} Bb6 {[%emt 0:02:30]} 23. Kd1 {[%emt 0:02:30]} Bc5 {[%emt 0:03:30]} 24. Bc4 {[%emt 0:00:30]} Ne6 {[%emt 0:07:30]} 25. Bd2 {[%emt 0:03:30]} Ke7 {[%emt 0:04:38]} 26. c3 {[%emt 0:00:30]} Rb8 {[%emt 0:01:04]} 27. Ra1 {[%emt 0:01:30]} bxc3 {[%emt 0:00:23]} 28. bxc3 {[%emt 0:00:00]} Bg1 {[%emt 0:01:50]} 29. Kc2 {[%emt 0:02:00]} Bc5 {[%emt 0:04:24]} 30. g3 {[%emt 0:00:30]} f6 {[%emt 0:02:03]} 31. f4 {[%emt 0:01:30]} Bb6 {[%emt 0:02:01]} 32. Rf1 {[%emt 0:02:30]} Bc5 {[%emt 0:02:08]} 33. Bd5 {[%emt 0:01:30]} Ba3 {[%emt 0:01:01]} 34. Ra1 {[%emt 0:00:30]} Bc5 {[%emt 0:00:22]} 35. Bc1 {[%emt 0:04:30]} Nc7 {[%emt 0:01:39]} 36. Bc4 {[%emt 0:00:00]} Ne6 {[%emt 0:00:15]} 37. Ra4 {[%emt 0:03:00]} Bb6 {[%emt 0:02:00]} 38. Bd5 {[%emt 0:01:30]} Nc7 {[%emt 0:01:15]} 39. Ba3 {[%emt 0:03:30]} Nxd5 {[%emt 0:01:38]} 40. exd5 {[%emt 0:00:00]} Rb7 {[%emt 0:01:09]} 41. Ra6 {[%emt 0:01:00]} exf4 {[%emt 0:00:45]} 42. gxf4 {[%emt 0:00:30]} f5 {[%emt 0:00:56]} 43. Kd3 {[%emt 0:01:30]} Kd7 {[%emt 0:01:11]} 44. Bb4 {[%emt 0:00:30]} Bc7 {[%emt 0:00:37]} 45. Ra8 {[%emt 0:01:30]} Bb8 {[%emt 0:00:34]} 46. Kc4 {[%emt 0:01:30]} g6 {[%emt 0:00:26] [#]} (46... Ke7 $11 {keeps the balance.}) 47. Kb3 {[%emt 0:01:30]} ({White should try} 47. h4 $1 $16) 47... Ke7 {[%emt 0:00:34]} 48. c4 {[%emt 0:01:30]} Kd7 {[%emt 0:00:14]} 49. Kc3 {[%emt 0:02:38]} Ke7 {[%emt 0:00:24]} 50. h3 {[%emt 0:01:25]} Kd7 {[%emt 0:00:07]} 51. h4 {[%emt 0:00:14]} Ke7 {[%emt 0:00:30]} 52. Ra2 {[%emt 0:00:18]} Ra7 {[%emt 0:01:02]} 53. Re2+ {[%emt 0:00:06]} Kf7 {[%emt 0:00:45]} 54. Re6 {[%emt 0:01:06]} Rd7 $1 {[%emt 0:00:08]} 55. h5 {[%emt 0:00:27]} Bc7 {[%emt 0:00:51]} 56. Kd3 {[%emt 0:00:43]} Rd8 {[%emt 0:00:34]} 57. Ba3 {[%emt 0:02:28]} (57. Bc3 $16) 57... Bb8 {[%emt 0:00:17]} 58. Kc2 {[%emt 0:01:49]} Bc7 $16 {[%emt 0:00:18]} 59. Bb4 {[%emt 0:00:05]} Rd7 {[%emt 0:00:53]} 60. Kb3 {[%emt 0:01:14]} Rd8 {[%emt 0:00:10]} 61. Bc3 {[%emt 0:01:06]} Rb8+ {[%emt 0:00:37]} 62. Ka4 {[%emt 0:00:31]} Ra8+ {[%emt 0:00:22]} 63. Kb5 {[%emt 0:01:03]} Ra3 {[%emt 0:00:23]} 64. hxg6+ {[%emt 0:01:38]} hxg6 {[%emt 0:00:32]} 65. Bf6 {[%emt 0:00:30]} Ra5+ {[%emt 0:00:30]} 66. Kc6 {[%emt 0:00:30]} Rc5+ {[%emt 0:00:30]} 67. Kd7 {[%emt 0:00:30]} Rxc4 {[%emt 0:00:30]} 68. Bg5 {[%emt 0:00:30]} Ba5 {[%emt 0:00:30]} 69. Re7+ {[%emt 0:05:12]} Kg8 {[%emt 0:00:43]} 70. Re8+ {[%emt 0:00:05]} Kf7 {[%emt 0:00:03]} 71. Ra8 {[%emt 0:00:05]} Bc3 {[%emt 0:01:10]} 72. Kxd6 {[%emt 0:00:21]} Bd2 {[%emt 0:00:28]} 73. Ra7+ {[%emt 0:00:32]} Ke8 {[%emt 0:00:32]} 74. Re7+ {[%emt 0:00:49]} Kf8 {[%emt 0:00:02]} 75. Bh6+ {[%emt 0:00:38]} Kg8 {[%emt 0:00:01]} 76. Rg7+ {[%emt 0:01:14]} Kh8 {[%emt 0:00:00]} 77. Rxg6 {[%emt 0:00:00]} Kh7 {[%emt 0:00:24]} 78. Re6 {[%emt 0:00:24]} Bb4+ {[%emt 0:01:54]} 79. Kd7 {[%emt 0:00:54]} Rd4 {[%emt 0:00:37]} 80. Kc6 {[%emt 0:00:08]} Ba3 {[%emt 0:00:32]} 81. Bg5 {[%emt 0:00:25]} Rc4+ {[%emt 0:00:32]} 82. Kd7 {[%emt 0:00:10]} Kg7 {[%emt 0:00:21]} 83. Bf6+ {[%emt 0:00:17]} Kf7 {[%emt 0:00:07]} 84. Be5 {[%emt 0:00:05]} 1-0

[Event "18th Izmir Open 2019"]
[Site "Izmir"]
[Date "2019.09.06"]
[Round "7.4"]
[White "Unat, Can Haktan"]
[Black "Koksal, Ege"]
[Result "0-1"]
[ECO "C01"]
[WhiteElo "2100"]
[BlackElo "2375"]
[Annotator "RC"]
[PlyCount "92"]
[EventDate "2019.09.02"]
[EventType "swiss"]
[EventCountry "TUR"]
[SourceTitle "playchess.com"]
[Source "ChessBase"]
[SourceQuality "1"]
[TimeControl "5400+30"]

1. e4 {[%emt 0:00:30]} e6 {[%emt 0:01:30]} 2. Nf3 {[%emt 0:00:30]} d5 {[%emt 0:00:00]} 3. exd5 {[%emt 0:00:00]} exd5 {[%emt 0:00:00]} 4. d4 {[%emt 0:00:00]} Nf6 {[%emt 0:00:00]} 5. Bd3 {[%emt 0:00:30]} c5 {[%emt 0:00:00]} 6. dxc5 {[%emt 0:01:30]} Bxc5 {[%emt 0:00:00]} 7. h3 {[%emt 0:00:30]} O-O {[%emt 0:01:00]} 8. O-O {[%emt 0:00:30]} Nc6 {[%emt 0:00:30]} 9. c3 {[%emt 0:00:30]} Ne4 {[%emt 0:00:30]} 10. Nbd2 {[%emt 0:00:30]} Bf5 {[%emt 0:00:30]} 11. Nb3 {[%emt 0:00:30]} Bb6 {[%emt 0:00:30]} 12. Nbd4 {[%emt 0:00:30]} Bg6 {[%emt 0:12:30]} 13. Be3 {[%emt 0:28:30]} Re8 {[%emt 0:00:30]} 14. Re1 {[%emt 0:01:30]} Qf6 {[%emt 0:13:30]} 15. Nb5 {[%emt 0:07:30]} Ba5 {[%emt 0:01:30]} 16. b4 {[%emt 0:04:30]} a6 {[%emt 0:06:30]} 17. bxa5 {[%emt 0:07:30]} axb5 {[%emt 0:01:30]} 18. Bxe4 {[%emt 0:01:30]} dxe4 {[%emt 0:01:30]} 19. Nd4 {[%emt 0:00:30]} Rxa5 {[%emt 0:00:30]} 20. Qb3 {[%emt 0:01:30]} Ne5 {[%emt 0:09:30]} 21. Qd5 {[%emt 0:12:30]} Qa6 {[%emt 0:06:30]} 22. Nb3 {[%emt 0:05:30]} Ra3 {[%emt 0:02:30]} 23. Reb1 {[%emt 0:05:32]} Qc6 {[%emt 0:01:30]} 24. Qc5 {[%emt 0:06:26]} Nc4 {[%emt 0:02:30]} 25. Nd2 {[%emt 0:04:20]} Nxe3 {[%emt 0:05:30]} 26. Qxa3 {[%emt 0:00:18]} Nc2 {[%emt 0:00:30]} 27. Qa5 {[%emt 0:00:34]} e3 {[%emt 0:01:30]} 28. fxe3 {[%emt 0:00:44]} Nxe3 {[%emt 0:01:30]} 29. Nf3 {[%emt 0:00:06]} Bxb1 {[%emt 0:00:30]} 30. Rxb1 {[%emt 0:00:07]} Nxg2 {[%emt 0:04:30]} 31. Qxb5 {[%emt 0:00:51]} Nf4 {[%emt 0:00:00]} 32. Qxc6 {[%emt 0:00:33]} bxc6 {[%emt 0:00:00]} 33. Kf2 {[%emt 0:02:32]} h6 {[%emt 0:00:00]} 34. Nd4 {[%emt 0:01:54]} Nxh3+ {[%emt 0:02:00]} 35. Kg2 {[%emt 0:00:21]} c5 {[%emt 0:01:30]} 36. Kxh3 {[%emt 0:01:11]} cxd4 {[%emt 0:00:30]} 37. cxd4 {[%emt 0:00:03]} Re3+ {[%emt 0:00:00]} 38. Kg2 {[%emt 0:00:13]} Re2+ {[%emt 0:01:00]} 39. Kf3 {[%emt 0:00:00]} Rxa2 {[%emt 0:00:00]} 40. Rb8+ {[%emt 0:00:10]} Kh7 {[%emt 0:00:00]} 41. d5 {[%emt 0:00:05]} Rd2 {[%emt 0:00:30]} 42. Ke4 {[%emt 0:00:06]} h5 {[%emt 0:00:30]} 43. Ke5 {[%emt 0:00:16]} h4 {[%emt 0:00:30]} 44. Rb4 {[%emt 0:00:08]} g5 {[%emt 0:00:00]} 45. Kf6 {[%emt 0:01:06]} Rxd5 {[%emt 0:01:00]} 46. Rb7 {[%emt 0:00:06]} Kh6 {[%emt 0:00:30]} 0-1